bitfinex/quotes_ETHUSD_20260302
["timestamp","ask_amount","ask_price","bid_price","bid_amount"]
[1772411351508,3.1347476,1945.8,1945.3,1.28514882]
[1772411352607,1.84992304,1945.8,1945.3,1.28514882]
[1772411353006,0.002,1945.9,1945.3,1.28514882]
[1772411353210,0.002,1945.9,1945.3,3.35979574]
[1772411353680,0.002,1945.9,1945.3,1.28514882]
[1772411354597,0.002,1945.9,1945.5,1.47903518]
[1772411355315,0.002,1946.2,1945.5,1.47903518]
[1772411355819,0.002,1946.2,1945.6,1.28495065]
[1772411356025,0.001,1946.4,1946.1,1.47903518]
[1772411356245,0.001,1946.4,1946.2,1.539]
[1772411356712,0.002,1946.6,1946.2,1.539]
[1772411356926,0.002,1946.8,1946.2,1.539]
[1772411357099,0.002,1946.8,1946.2,3.01803518]
[1772411357623,0.002,1946.8,1946.4,1.47903518]
[1772411357793,0.002,1946.8,1946.4,2.76341374]
[1772411358004,0.002,1946.8,1946.5,1.539]
[1772411358795,1.85192304,1946.8,1946.2,0.6]
[1772411359008,1.84992304,1946.7,1945.9,0.832]
[1772411360931,1.84992304,1946.5,1945.7,1.28488461]
[1772411361232,1.84992304,1946.5,1945.7,2.82188461]
[1772411362909,1.28442252,1946.4,1945.7,2.82188461]
[1772411363136,3.13434556,1946.4,1945.7,2.82188461]
[1772411363541,3.13434556,1946.4,1945.8,0.6]
[1772411365542,1.84992304,1946.3,1945.8,0.6]
[1772411366229,1.84992304,1946.3,1945.8,1.88481805]
[1772411368763,3.13433046,1946.5,1945.9,0.001]
[1772411369371,3.13621452,1946.6,1945.9,3.01603518]
[1772411369574,1.84992304,1946.5,1945.9,1.537]
[1772411370445,1.84992304,1946.5,1946.0,1.535]
[1772411370652,1.84992304,1946.5,1946.0,2.81962744]
[1772411370979,3.13428053,1946.5,1946.0,2.81962744]
[1772411372856,3.13428053,1946.5,1945.9,5.13988248]
[1772411372857,1.84992304,1946.4,1945.9,2.82170434]
[1772411373593,1.85192304,1946.7,1945.9,4.30073952]
[1772411373882,0.002,1946.7,1946.2,1.47903518]
[1772411374061,0.002,1946.7,1946.3,1.536]
[1772411374392,0.002,1946.8,1946.4,1.47903518]
[1772411374948,0.002,1946.8,1946.5,1.28435653]
[1772411380808,0.002,1946.8,1946.6,1.541]
[1772411380809,1.85192304,1946.8,1946.6,1.541]
[1772411381400,1.85192304,1946.8,1946.6,2.82528689]
[1772411381706,0.002,1946.7,1946.6,2.82528689]
[1772411382419,0.002,1946.7,1946.6,1.28428689]
[1772411382624,0.002,1946.7,1946.6,2.82628689]
[1772411383427,0.002,1946.7,1946.5,0.001]
[1772411383633,0.002,1946.7,1946.6,1.543]
[1772411384098,1.7783437,1946.9,1946.6,1.543]
[1772411385727,1.7783437,1946.9,1946.6,2.82727997]
[1772411386526,1.7783437,1946.9,1946.6,2.827284]
[1772411386822,1.7783437,1946.9,1946.6,1.284284]
[1772411387012,1.7783437,1946.9,1946.6,2.828284]
[1772411388927,0.002,1946.9,1946.6,2.828284]
[1772411389129,0.002,1946.9,1946.6,2.829284]
[1772411394337,1.65531266,1947.4,1946.7,1.71427928]
[1772411394628,0.002,1947.6,1946.6,2.829284]
[1772411394629,0.002,1947.6,1947.2,1.28389482]
[1772411394925,0.002,1947.6,1947.2,2.83289482]
[1772411396049,1.65531266,1947.7,1947.2,2.83289482]
[1772411396050,0.002,1947.7,1947.3,1.71427928]
[1772411396210,0.002,1947.7,1947.3,3.19331446]
[1772411396622,0.002,1947.7,1947.3,1.71427928]
[1772411397530,0.34977571,1947.8,1947.5,1.71427928]
[1772411397713,0.34977571,1947.8,1947.6,1.551]
[1772411398729,1.65331266,1947.7,1946.7,1.71527928]
[1772411398937,1.65331266,1947.7,1946.8,1.552]
[1772411399234,1.65331266,1947.6,1946.8,1.552]
[1772411399450,1.28369704,1947.5,1946.7,0.001]
[1772411399616,1.65331266,1947.4,1946.9,1.551]
[1772411400443,1.65331266,1947.4,1946.8,1.551]
[1772411401145,2.93692787,1947.7,1947.0,1.71427928]
[1772411401329,0.34977571,1947.8,1947.2,1.71427928]
[1772411401653,0.34977571,1947.8,1947.3,2.83377796]
[1772411401945,1.63329349,1947.8,1947.3,2.83377796]
[1772411402155,1.65331266,1947.7,1947.4,1.55]
[1772411403409,1.65331266,1947.7,1946.9,1.47903518]
[1772411403410,1.65331266,1947.6,1946.9,1.55]
[1772411403608,1.65331266,1947.4,1946.9,1.55]
[1772411404015,1.65331266,1947.4,1946.9,2.83407734]
[1772411404340,1.65331266,1947.4,1946.9,1.55]
[1772411405161,1.65331266,1947.4,1946.7,0.001]
[1772411405522,1.65331266,1947.2,1946.8,0.6]
[1772411407754,1.28396076,1947.1,1947.0,0.001]
[1772411408496,2.937258,1947.2,1947.0,0.001]
[1772411408957,2.9389897,1947.6,1947.0,0.001]
[1772411409144,1.65331266,1947.5,1947.0,0.001]
[1772411409662,1.28567704,1947.6,1947.0,1.71527928]
[1772411409663,0.002,1947.6,1947.0,1.71527928]
[1772411409865,0.002,1947.6,1947.1,1.28396076]
[1772411410075,0.002,1947.6,1947.2,1.546]
[1772411410239,0.002,1947.6,1947.3,1.71427928]
[1772411410564,0.002,1947.7,1947.4,1.71427928]
[1772411411749,0.002,1947.7,1947.5,1.547]
[1772411412152,1.65531266,1947.7,1947.0,1.28501558]
[1772411412360,1.65531266,1947.7,1947.0,0.001]
[1772411413148,1.65531266,1947.7,1947.0,1.28502242]
[1772411414057,3.11308456,1947.6,1947.0,1.28502242]
[1772411415235,0.002,1947.7,1947.1,1.77683406]
[1772411415438,3.11502487,1947.7,1947.1,2.37683406]
[1772411416035,1.28557144,1947.7,1947.2,1.28389482]
[1772411416243,3.11502487,1947.7,1947.2,2.82989482]
[1772411416459,3.11502487,1947.7,1947.2,1.546]
[1772411417060,0.002,1947.7,1947.2,3.24263529]
[1772411418057,0.002,1947.7,1947.3,1.69663529]
[1772411418567,0.002,1947.7,1947.4,1.28376296]
[1772411419472,0.002,1947.7,1947.3,2.98042597]
[1772411420373,0.002,1947.7,1947.3,2.98046023]
[1772411420541,0.002,1947.6,1947.4,1.549]
[1772411420742,0.002,1947.7,1947.4,3.24563529]
[1772411422755,0.002,1947.9,1947.6,1.69663529]
[1772411423745,0.002,1947.9,1947.4,2.98034541]
[1772411423946,0.002,1947.9,1947.7,1.553]
[1772411424552,0.002,1947.9,1947.7,3.24963529]
[1772411424756,0.002,1947.9,1947.8,2.98013462]
[1772411425050,1e-08,1948.0,1947.8,2.98013462]
[1772411426667,1e-08,1948.0,1947.8,1.69663529]
[1772411426848,1e-08,1948.0,1947.7,1.553]
[1772411427049,1e-08,1948.0,1947.7,2.83656019]
[1772411427689,1e-08,1948.0,1947.7,1.553]
[1772411427881,1e-08,1948.0,1947.7,2.83656392]
[1772411428380,1e-08,1948.0,1947.7,2.83656092]
[1772411428750,1e-08,1948.0,1947.6,1.69663529]
[1772411428981,1.77576463,1948.0,1947.3,6.69982639]
[1772411429282,1.77576463,1948.0,1947.4,1.556]
[1772411429580,1.77576463,1948.0,1947.3,1.556]
[1772411430791,1.77576463,1948.0,1947.1,2.83222951]
[1772411430792,1.77576462,1947.8,1947.1,2.83222951]
[1772411431080,1.77576462,1947.6,1947.1,2.83222951]
[1772411431575,1.1467421,1947.6,1947.1,2.83222951]
[1772411432158,1.28356523,1947.7,1947.1,5.78713327]
[1772411432359,1.28356523,1947.7,1947.2,1.69663529]
[1772411432780,1.28356523,1947.7,1947.2,1.69763529]
[1772411433081,0.002,1947.6,1947.2,1.69763529]
[1772411435584,1.2260771,1947.6,1947.2,0.001]
[1772411437075,0.002,1947.6,1947.2,0.001]
[1772411437388,0.002,1947.6,1947.2,1.69763529]
[1772411437689,1.28556523,1947.7,1947.3,1.69663529]
[1772411437690,0.002,1947.7,1947.3,1.69663529]
[1772411437900,0.002,1947.7,1947.4,1.69663529]
[1772411438195,0.002,1947.7,1947.5,3.25563529]
[1772411440100,0.002,1947.7,1947.5,1.559]
[1772411440271,0.002,1947.7,1947.3,1.69663529]
[1772411440596,1.23230858,1947.7,1947.3,1.559]
[1772411440820,1.23230858,1947.7,1947.2,0.001]
[1772411441699,1.22830426,1947.5,1947.2,0.001]
[1772411442964,1.28363113,1947.6,1947.2,0.001]
[1772411444687,1.28363113,1947.6,1947.1,4.50317899]
[1772411444688,1.22223441,1947.5,1947.1,2.6998214]
[1772411444876,1.22223441,1947.5,1947.1,0.46495682]
[1772411445200,1.22223441,1947.5,1947.0,0.00253886]
[1772411445400,1.22423441,1947.5,1947.0,0.00253886]
[1772411446095,0.002,1947.5,1947.0,1.8907081]
[1772411446295,0.002,1947.5,1947.1,1.88816924]
[1772411446501,0.002,1947.5,1947.2,1.88816924]
[1772411448102,0.002,1947.5,1947.3,1.91833392]
[1772411449299,0.002,1947.5,1947.1,0.6]
[1772411449597,0.002,1947.5,1947.1,1.91833392]
[1772411450274,0.002,1947.5,1947.2,1.28389482]
[1772411450475,0.002,1947.5,1947.2,3.20222874]
[1772411451103,0.002,1947.6,1947.3,1.91833392]
[1772411451504,0.002,1947.6,1947.3,2.51833392]
[1772411452092,0.002,1947.6,1947.3,4.08033392]
[1772411452693,0.002,1947.6,1947.3,2.51833392]
[1772411453300,0.002,1947.6,1947.3,3.80215918]
[1772411453612,0.002,1947.6,1947.3,2.51833392]
[1772411453929,0.002,1947.6,1947.3,3.80215739]
[1772411454578,0.002,1947.6,1947.3,2.51833392]
[1772411456590,0.002,1947.6,1947.3,4.08433392]
[1772411457110,0.002,1947.6,1947.3,5.3681608]
[1772411457511,0.002,1947.6,1947.3,4.08433392]
[1772411458101,0.002,1947.5,1947.3,4.08433392]
[1772411458482,0.002,1947.5,1947.3,5.3681578]
[1772411458685,0.002,1947.5,1947.4,1.91833392]
[1772411458883,0.002,1947.7,1947.5,1.91833392]
[1772411460015,0.002,1947.9,1947.7,1.91833392]
[1772411460318,1.2831035,1948.5,1947.7,1.91833392]
[1772411460988,1.2831035,1948.5,1947.9,1.91833392]
[1772411461402,0.0645202,1948.4,1947.9,1.91833392]
[1772411461680,1.3476237,1948.5,1947.9,1.91833392]
[1772411462510,0.06313892,1948.4,1947.5,1.91833392]
[1772411462713,0.06313892,1948.4,1947.6,1.91833392]
[1772411463079,1.28316994,1948.3,1947.7,1.28356523]
[1772411463280,1.28315053,1948.4,1947.8,1.91833392]
[1772411464911,1.28315053,1948.4,1947.8,1.566]
[1772411465122,1.34174239,1948.4,1947.8,3.48433392]
[1772411465320,1.34174239,1948.4,1947.9,1.91833392]
[1772411465910,1.28303823,1948.5,1947.9,1.91833392]
[1772411467502,1.28303823,1948.5,1948.0,1.91833392]
[1772411467698,1.64968469,1948.7,1948.0,1.91833392]
[1772411468189,1.64968469,1948.7,1948.2,1.91833392]
[1772411468585,0.05396333,1948.6,1948.1,0.6]
[1772411468820,0.05396333,1948.6,1947.8,4.76783261]
[1772411469116,0.05396333,1948.6,1947.9,1.91833392]
[1772411469925,1.28303823,1948.5,1947.9,3.20175635]
[1772411470229,1.28303823,1948.5,1948.0,1.91833392]
[1772411470985,0.29087971,1948.5,1948.0,1.91833392]
[1772411471908,0.29087971,1948.5,1948.1,1.28330167]
[1772411472110,0.002,1948.6,1948.2,1.91833392]
[1772411472711,0.002,1948.9,1948.3,1.91833392]
[1772411473512,1.28248313,1949.4,1948.6,1.91833392]
[1772411473711,1.28224855,1949.7,1948.8,1.88616924]
[1772411474033,1.28224855,1949.7,1949.1,1.88616924]
[1772411474836,1.34792651,1949.7,1949.1,1.88616924]
[1772411475024,0.06567796,1949.2,1948.5,1.566]
[1772411475213,0.06567796,1949.1,1948.4,1.88616924]
[1772411475414,0.06567796,1949.1,1948.2,1.88616924]
[1772411476437,1.34671388,1949.0,1948.3,1.88616924]
[1772411476732,1.34669797,1949.1,1948.3,1.88616924]
[1772411478512,1.34669797,1949.1,1948.5,1.88616924]
[1772411480636,0.05840439,1949.0,1948.5,1.88616924]
[1772411480828,0.05840439,1949.0,1948.3,3.44916924]
[1772411481007,0.05840439,1949.0,1948.3,1.88616924]
[1772411483236,1.28277489,1948.9,1948.4,1.88616924]
[1772411483418,1.28277489,1948.9,1948.6,0.001]
[1772411483738,1.33601394,1948.9,1948.6,0.001]
[1772411483927,1.28277489,1948.9,1948.6,0.001]
[1772411485321,5.18286472,1949.0,1948.6,0.001]
[1772411486336,0.04802346,1948.9,1948.1,1.81092257]
[1772411486837,0.04802346,1948.9,1948.2,0.6]
[1772411487921,1.8271334,1948.8,1948.4,1.81092257]
[1772411488137,1.28282223,1948.9,1948.4,1.81092257]
[1772411489739,3.11188566,1949.0,1948.4,1.81092257]
[1772411489937,0.002,1949.0,1948.6,1.81092257]
[1772411490138,1.28471697,1949.0,1948.6,1.81092257]
[1772411490731,3.11185037,1949.0,1948.4,3.09397993]
[1772411491942,3.11185037,1949.0,1948.5,1.81092257]
[1772411494549,0.002,1949.0,1948.7,1.81092257]
[1772411494710,0.002,1949.3,1948.9,1.81092257]
[1772411495926,1.8271334,1949.2,1948.7,1.81092257]
[1772411496111,0.002,1949.3,1948.9,1.81092257]
[1772411496643,0.002,1949.3,1948.9,3.09363995]
[1772411496840,0.002,1949.3,1949.0,0.001]
[1772411497342,0.002,1949.2,1949.0,0.001]
[1772411497738,1.8291334,1949.2,1949.0,0.001]
[1772411498049,0.002,1949.2,1949.0,0.001]
[1772411499036,1.8291334,1949.2,1948.7,0.001]
[1772411500244,1.8271334,1949.1,1948.7,0.001]
[1772411500646,1.8271334,1948.9,1948.7,0.001]
[1772411500951,1.8271334,1948.9,1948.0,1.28488678]
[1772411501126,1.8271334,1948.9,1948.1,1.81092257]
[1772411501745,1.8271334,1948.9,1948.1,1.47393565]
[1772411501955,2.84970908,1949.0,1948.3,1.81092257]
[1772411502114,4.67684248,1949.0,1948.3,1.81092257]
[1772411502322,1.8271334,1948.9,1948.3,1.81092257]
[1772411502834,3.10996806,1948.9,1948.3,3.09404112]
[1772411503152,1.8271334,1948.9,1948.4,1.81092257]
[1772411503651,1.28274414,1949.0,1948.5,1.81092257]
[1772411503855,1.28267698,1949.1,1948.5,1.81092257]
[1772411504960,1.8271334,1949.1,1948.5,3.09395469]
[1772411505828,1.8271334,1949.1,1948.4,1.564]
[1772411506536,1.8271334,1949.1,1948.5,1.81092257]
[1772411506764,5.13241767,1949.2,1948.5,1.81092257]
[1772411507057,1.28457746,1949.2,1948.5,1.81092257]
[1772411507252,1.28457746,1949.2,1948.6,1.28297239]
[1772411507456,1.28457746,1949.2,1948.7,1.82724761]
[1772411508334,1.28457746,1949.2,1948.4,1.564]
[1772411508335,1.87277596,1949.1,1948.4,1.82724761]
[1772411509444,1.87277596,1948.9,1948.5,0.001]
[1772411510352,1.87277596,1948.9,1948.6,0.6]
[1772411511451,1.28284072,1948.8,1948.5,0.001]
[1772411511837,3.15560146,1948.9,1948.5,0.001]
[1772411512858,1.28274043,1949.0,1948.5,3.11128178]
[1772411513063,1.28274043,1949.0,1948.5,1.82824761]
[1772411513367,3.15551639,1949.0,1948.5,1.82824761]
[1772411514867,0.002,1949.2,1948.5,0.001]
[1772411514868,1.87277596,1948.9,1948.5,0.001]
[1772411515245,1.87277596,1948.9,1948.4,0.001]
[1772411517071,3.15561668,1948.8,1948.4,0.001]
[1772411517449,1.87277596,1948.7,1948.4,0.001]
[1772411519071,1.28297239,1948.6,1948.4,0.001]
[1772411519254,3.15574835,1948.6,1948.4,0.001]
[1772411519649,1.87277596,1948.6,1948.4,0.001]
[1772411519854,2.85382282,1948.9,1948.4,1.82824761]
[1772411520349,4.72659878,1948.9,1948.4,1.82824761]
[1772411520555,1.87277596,1948.8,1948.4,1.82824761]
[1772411521092,1.28284868,1948.8,1948.4,1.82824761]
[1772411521249,1.87277596,1949.0,1948.5,0.001]
[1772411521456,0.002,1949.2,1948.5,1.82824761]
[1772411521645,1.2845786,1949.2,1948.8,1.82724761]
[1772411521843,0.002,1948.9,1948.8,1.82724761]
[1772411522042,0.002,1949.1,1948.8,1.82724761]
[1772411522242,0.002,1949.3,1948.8,1.82724761]
[1772411522754,0.002,1949.3,1949.0,1.82724761]
[1772411523156,0.002,1949.3,1949.1,1.82724761]
[1772411523458,1.65308698,1949.9,1949.3,1.82724761]
[1772411523858,3.52586294,1949.9,1949.3,1.82724761]
[1772411524460,1.87277596,1949.8,1949.2,3.38924761]
[1772411525277,1.28224855,1949.7,1949.2,3.38924761]
[1772411525778,1.28224855,1949.7,1949.2,4.67181912]
[1772411527581,1.87277596,1949.6,1948.8,1.82724761]
[1772411529664,1.28238009,1949.5,1948.8,1.82724761]
[1772411529872,1.87277596,1949.4,1948.8,1.82724761]
[1772411530073,1.87277596,1949.4,1948.8,3.11008389]
[1772411530473,1.87277596,1949.4,1948.8,1.82724761]
[1772411530659,1.87277596,1949.4,1948.6,1.82724761]
[1772411531254,1.28238009,1949.5,1948.8,1.82724761]
[1772411531582,1.28230453,1949.7,1949.0,1.82724761]
[1772411531756,1.28230453,1949.7,1949.2,1.82724761]
[1772411532569,1.87277596,1949.6,1949.0,1.561]
[1772411532769,3.15501139,1949.8,1949.1,1.82724761]
[1772411532971,1.87277596,1949.7,1949.1,1.82724761]
[1772411533365,3.15501139,1949.8,1949.1,1.82724761]
[1772411533891,1.90646499,1949.7,1949.3,0.001]
[1772411534367,0.002,1949.7,1949.4,1.92900494]
[1772411536559,0.002,1949.7,1949.3,4.77348569]
[1772411537079,0.002,1949.7,1949.3,3.49200494]
[1772411537257,0.002,1949.7,1949.4,0.6]
[1772411538859,1.88107228,1949.7,1949.3,0.001]
[1772411540461,3.1613866,1949.6,1949.3,0.001]
[1772411541400,1.87907228,1949.6,1949.3,0.001]
[1772411541610,1.28429669,1949.7,1949.3,0.001]
[1772411542189,3.16336897,1949.7,1949.3,0.001]
[1772411543296,0.002,1949.8,1949.5,1.78448453]
[1772411543492,10.25,1950.8,1949.5,1.78448453]
[1772411543493,1.87907228,1950.7,1949.7,1.78448453]
[1772411543795,1.87907228,1950.7,1949.8,1.78448453]
[1772411544093,1.87907228,1950.6,1949.8,1.78448453]
[1772411545558,1.28172263,1950.5,1950.0,1.78448453]
[1772411546016,1.23172263,1950.5,1950.0,1.78448453]
[1772411546294,1.87907228,1950.4,1949.8,1.78448453]
[1772411546591,1.87907228,1950.4,1949.8,3.34448453]
[1772411547374,1.87907228,1950.4,1949.9,1.78448453]
[1772411547580,1.23172263,1950.5,1950.0,1.78448453]
[1772411547783,3.11079491,1950.5,1949.8,1.78448453]
[1772411548075,1.87907228,1950.4,1949.8,3.34448453]
[1772411548277,1.23172263,1950.5,1949.9,1.78448453]
[1772411548603,1.28366557,1950.6,1950.0,1.78448453]
[1772411549783,1.28366557,1950.6,1950.0,3.0664732]
[1772411549986,0.002,1950.6,1950.1,1.78448453]
[1772411550185,0.002,1950.6,1950.2,1.56]
[1772411550393,0.002,1950.6,1950.3,1.78448453]
[1772411551268,1.28149221,1950.9,1950.3,1.78448453]
[1772411551703,0.35126007,1951.2,1950.6,1.78448453]
[1772411551902,3.15998539,1951.8,1951.0,1.78448453]
[1772411552089,3.15998539,1951.8,1951.2,1.78448453]
[1772411552289,3.15998539,1951.8,1951.1,2.06338197]
[1772411552290,1.87907228,1951.7,1951.0,1.78448453]
[1772411552479,1.87907228,1951.7,1951.1,1.56]
[1772411552887,1.87907228,1951.7,1951.0,3.34448453]
[1772411553799,5.12327492,1951.9,1951.2,3.06574734]
[1772411554005,5.12185193,1952.5,1951.2,3.06574734]
[1772411554006,1.67667474,1952.2,1951.8,1.78448453]
[1772411554205,1.87907228,1952.6,1951.7,3.8478665]
[1772411554380,1.87907228,1952.6,1951.8,1.559]
[1772411554703,1.87907228,1952.6,1951.5,0.976]
[1772411555007,1.87907228,1952.6,1951.8,2.06338197]
[1772411555181,1.28027858,1952.7,1951.9,1.78448453]
[1772411555690,1.28027858,1952.7,1952.1,1.78448453]
[1772411556001,6.99992543,1952.8,1952.1,3.06514276]
[1772411556199,6.99992543,1952.8,1952.1,1.78448453]
[1772411556604,1.62880135,1952.9,1952.1,1.78448453]
[1772411556605,1.62876744,1952.9,1952.2,1.78448453]
[1772411556805,1.62874528,1952.9,1952.3,1.558]
[1772411557106,1.62874528,1952.9,1952.4,1.558]
[1772411557305,1.62874528,1952.9,1952.1,5.90599621]
[1772411557306,1.87907228,1952.8,1951.8,1.78448453]
[1772411557485,1.87907228,1952.8,1951.9,3.34148453]
[1772411557683,1.87907228,1952.8,1951.9,1.78448453]
[1772411557890,1.87907228,1952.6,1951.6,4.62247576]
[1772411558083,1.87907228,1952.6,1951.7,1.78448453]
[1772411558289,1.28027858,1952.7,1951.9,1.78448453]
[1772411558886,1.87907228,1952.6,1951.6,1.28099881]
[1772411559088,1.87907228,1952.6,1951.6,3.06547589]
[1772411559579,1.87907228,1952.6,1951.7,1.78448453]
[1772411559779,1.87907228,1952.6,1951.6,1.557]
[1772411560279,1.87907228,1952.6,1951.4,3.06556655]
[1772411560280,1.87907228,1952.4,1951.4,1.556]
[1772411560483,1.87907228,1952.4,1951.6,1.78448453]
[1772411560894,1.28040973,1952.5,1951.6,1.78448453]
[1772411561081,3.15948201,1952.5,1951.6,1.78448453]
[1772411561411,1.87907228,1952.4,1951.5,1.78448453]
[1772411561609,1.87907228,1952.4,1951.6,3.34048453]
[1772411561802,1.87907228,1952.4,1951.4,1.28112897]
[1772411562003,1.87907228,1952.4,1951.6,0.001]
[1772411562199,1.87907228,1952.2,1951.6,0.001]
[1772411562382,3.45707228,1952.2,1951.6,0.001]
[1772411562584,1.87907228,1952.1,1951.6,0.001]
[1772411564106,3.15980998,1952.0,1951.6,0.001]
[1772411564304,3.15980998,1952.0,1951.1,1.78448453]
[1772411564615,3.15980998,1952.0,1951.2,1.78448453]
[1772411566019,1.87907228,1951.9,1951.2,1.78448453]
[1772411566186,1.28086894,1951.8,1951.2,1.78448453]
[1772411567117,1.28086894,1951.8,1951.2,3.18202666]
[1772411567286,1.28086894,1951.8,1951.2,1.90076658]
[1772411568707,1.85867139,1951.8,1951.1,5.33505041]
[1772411569190,3.13934348,1952.1,1951.2,1.90076658]
[1772411569387,1.85867139,1952.0,1951.2,1.90076658]
[1772411569896,1.85867139,1952.0,1951.2,3.45376658]
[1772411570099,1.85867139,1952.0,1951.3,1.90076658]
[1772411571220,1.28080331,1951.9,1951.3,3.18194906]
[1772411571408,1.28080331,1951.9,1951.3,1.90076658]
[1772411573127,6.98145717,1952.1,1951.4,1.90076658]
[1772411573327,6.98145717,1952.1,1951.5,1.90076658]
[1772411574729,3.13918159,1952.4,1951.6,1.90076658]
[1772411574895,1.2805102,1952.4,1951.7,1.90076658]
[1772411575091,1.28045776,1952.5,1951.7,1.90076658]
[1772411575292,3.13921229,1952.3,1951.6,1.552]
[1772411575603,1.85867139,1952.2,1951.4,1.90076658]
[1772411575810,1.85867139,1952.0,1951.0,1.90230544]
[1772411576127,1.85867139,1952.0,1951.1,1.90076658]
[1772411576428,1.85867139,1952.0,1951.3,1.90176658]
[1772411576727,1.86067139,1952.0,1951.3,1.90176658]
[1772411577507,1.28277032,1952.0,1951.3,1.28219508]
[1772411577708,0.002,1952.0,1951.4,1.90076658]
[1772411577906,0.002,1952.0,1951.5,1.90076658]
[1772411578321,1.28274671,1952.0,1951.5,1.90076658]
[1772411578519,0.002,1952.0,1951.5,1.89143181]
[1772411578921,0.002,1952.0,1951.6,1.551]
[1772411579121,0.002,1952.0,1951.7,1.90076658]
[1772411579328,0.002,1952.1,1951.7,1.90076658]
[1772411580347,0.002,1952.1,1951.8,3.18163552]
[1772411580898,0.002,1952.1,1951.8,1.90076658]
[1772411581210,0.002,1952.1,1951.8,1.551]
[1772411581406,0.002,1952.1,1951.7,1.552]
[1772411581726,0.002,1952.1,1951.7,4.05276658]
[1772411582342,0.002,1952.1,1951.7,5.33365181]
[1772411582565,3.13888441,1952.8,1951.8,1.90076658]
[1772411582701,7.04744043,1952.9,1952.0,1.90076658]
[1772411582702,1.62878617,1952.9,1952.0,1.90076658]
[1772411582899,1.28019784,1952.9,1952.0,1.90076658]
[1772411583833,1.85867139,1952.8,1952.0,1.90076658]
[1772411583999,1.85867139,1952.7,1952.0,1.552]
[1772411584519,1.85867139,1952.5,1952.0,1.552]
[1772411584721,1.85867139,1952.5,1951.7,3.78169255]
[1772411584722,1.85867139,1952.5,1951.7,0.6]
[1772411584921,1.85867139,1952.5,1951.7,1.551]
[1772411585714,1.85867139,1952.5,1951.7,3.45176658]
[1772411586624,1.85867139,1952.3,1951.5,4.73182213]
[1772411587021,1.28047531,1952.4,1951.7,1.90076658]
[1772411588242,3.1391467,1952.4,1951.7,3.45076658]
[1772411588542,3.1391467,1952.4,1951.8,1.28086894]
[1772411588744,1.28044839,1952.5,1951.8,3.18163552]
[1772411589044,1.28044839,1952.5,1951.9,1.90076658]
[1772411589357,1.28015655,1952.9,1952.0,1.90076658]
[1772411589511,3.13882794,1952.9,1952.0,1.90076658]
[1772411589712,1.85867139,1952.8,1951.8,3.18163552]
[1772411589943,1.85867139,1952.8,1951.9,1.55]
[1772411590416,1.85867139,1952.8,1951.8,1.90076658]
[1772411590617,1.85867139,1952.8,1951.9,1.55]
[1772411590844,1.28027858,1952.7,1951.9,1.2807963]
[1772411591028,0.002,1952.4,1951.9,4.73156288]
[1772411591640,0.002,1952.4,1951.9,1.90076658]
[1772411591945,1.86067139,1952.4,1951.9,1.55]
[1772411592349,1.86067139,1952.4,1951.8,0.001]
[1772411592520,1.86067139,1952.4,1951.8,1.551]
[1772411592716,1.2805409,1952.3,1951.8,0.001]
[1772411592916,1.85867139,1952.2,1951.8,0.001]
[1772411594636,1.85867139,1952.2,1951.6,0.6]
[1772411594847,1.91763693,1952.0,1951.3,0.001]
[1772411597030,1.91763693,1951.8,1951.3,0.001]
[1772411597450,1.28080331,1951.9,1951.3,0.001]
[1772411597623,1.28080331,1951.9,1951.3,1.81399029]
[1772411598934,1.91534447,1951.9,1951.3,0.001]
[1772411601251,1.91534447,1951.7,1951.3,0.001]
[1772411602551,1.91534447,1951.7,1951.0,0.00153886]
[1772411603460,1.2810002,1951.6,1951.0,0.00153886]
[1772411603752,3.19634467,1951.6,1951.0,0.00153886]
[1772411604058,1.28096776,1951.7,1951.1,1.81299029]
[1772411604255,1.28096776,1951.7,1951.1,2.41299029]
[1772411604635,3.19631223,1951.7,1951.1,2.41299029]
[1772411604834,1.91534447,1951.6,1951.1,0.6]
[1772411605040,1.91534447,1951.6,1951.0,0.00153886]
[1772411605261,1.91534447,1951.6,1951.1,0.001]
[1772411605430,1.28103068,1951.6,1951.1,0.001]
[1772411605753,5.12396866,1951.7,1951.2,1.81299029]
[1772411605754,1.28093456,1951.7,1951.2,1.81299029]
[1772411606123,1.28287393,1951.8,1951.2,1.81299029]
[1772411607832,3.1982184,1951.8,1951.2,1.81299029]
[1772411608447,1.91534447,1951.7,1951.1,0.001]
[1772411609966,1.2809778,1951.7,1951.1,1.81399029]
[1772411610144,1.91534447,1951.6,1951.1,0.001]
[1772411610343,1.91534447,1951.6,1951.1,1.542]
[1772411610650,3.19632227,1951.7,1951.1,1.542]
[1772411610850,1.91534447,1951.6,1951.1,0.001]
[1772411611235,1.2809778,1951.7,1951.1,0.001]
[1772411611463,1.2809778,1951.7,1951.1,1.81399029]
[1772411611861,1.91534447,1951.7,1951.1,1.81399029]
[1772411612754,1.91534447,1951.5,1951.0,0.00253886]
[1772411613765,1.578,1951.7,1951.1,1.81299029]
[1772411613965,1.91534447,1951.5,1951.0,0.00253886]
[1772411615242,1.91534447,1951.3,1951.0,0.00253886]
[1772411616562,1.91534447,1951.1,1951.0,0.00253886]
[1772411616767,1.91534447,1951.1,1950.8,0.001]
[1772411617274,1.91534447,1951.1,1950.3,1.81299029]
[1772411617844,1.91534447,1951.1,1950.1,4.37493773]
[1772411618261,1.91534447,1951.1,1950.1,1.81299029]
[1772411618461,1.91534447,1950.7,1950.0,0.00153886]
[1772411618668,1.91534447,1950.7,1950.0,1.81452915]
[1772411618947,3.19686999,1950.8,1950.0,1.81452915]
[1772411620185,1.91534447,1950.7,1950.0,1.81452915]
[1772411620688,3.19698676,1950.7,1950.1,3.09497582]
[1772411620846,1.91534447,1950.6,1950.0,0.00153886]
[1772411621187,3.3863634,1950.3,1949.5,1.81299029]
[1772411621355,3.05101893,1950.6,1949.5,1.81299029]
[1772411621356,1.91534447,1950.2,1949.5,1.81299029]
[1772411621554,1.91534447,1950.2,1949.4,1.28343327]
[1772411621869,1.91534447,1949.8,1949.4,0.001]
[1772411622895,1.28224855,1949.7,1949.4,0.001]
[1772411623500,1.91534447,1949.6,1949.4,0.001]
[1772411624703,1.91534447,1949.4,1949.2,0.001]
[1772411624911,1.91534447,1949.2,1949.0,0.00253886]